bitfinex/quotes_BTCUSD_20220101
["timestamp","ask_amount","ask_price","bid_price","bid_amount"]
[1641067215448,0.915395,47347.0,47346.0,0.04949632]
[1641067216950,0.93359824,47347.0,47346.0,0.04892153]
[1641067217151,0.91375865,47347.0,47346.0,0.02474816]
[1641067217350,0.91375865,47347.0,47346.0,0.04892153]
[1641067217551,0.91383798,47347.0,47346.0,0.04892153]
[1641067218199,0.91383798,47347.0,47346.0,0.10172053]
[1641067218404,0.93269378,47347.0,47346.0,0.10172053]
[1641067218598,0.91441121,47347.0,47346.0,0.44482384]
[1641067218798,0.91441121,47347.0,47346.0,0.59581084]
[1641067219000,0.91441121,47347.0,47346.0,0.46166939]
[1641067219199,0.0188558,47347.0,47346.0,0.59583054]
[1641067219401,0.03696383,47347.0,47346.0,0.59583054]
[1641067219601,0.01810803,47347.0,47346.0,0.59583054]
[1641067220203,0.01810803,47347.0,47346.0,0.93546554]
[1641067220402,0.01810803,47347.0,47346.0,0.92546554]
[1641067220801,7.303e-05,47350.0,47346.0,0.91071738]
[1641067221005,7.303e-05,47350.0,47349.0,0.13416115]
[1641067221204,7.303e-05,47350.0,47349.0,0.18695515]
[1641067222663,7.303e-05,47350.0,47349.0,0.21112852]
[1641067223766,7.303e-05,47350.0,47349.0,0.1583331]
[1641067223964,0.33970803,47350.0,47349.0,0.02417337]
[1641067224163,0.43970803,47350.0,47349.0,0.02417337]
[1641067224563,1.57970803,47350.0,47349.0,0.02417337]
[1641067224764,1.47970803,47350.0,47349.0,0.02417337]
[1641067225406,2.39641399,47350.0,47349.0,0.02417337]
[1641067226400,2.41711481,47350.0,47349.0,0.03892153]
[1641067226599,2.39596426,47350.0,47349.0,0.03892153]
[1641067227399,2.46327193,47350.0,47349.0,0.03892153]
[1641067227600,2.44257111,47350.0,47349.0,0.03892153]
[1641067229002,0.96293611,47350.0,47349.0,0.03892153]
[1641067229265,0.96265762,47350.0,47349.0,0.03892153]
[1641067229467,1.44379998,47350.0,47349.0,0.03892153]
[1641067229763,1.4239708,47350.0,47349.0,0.03892153]
[1641067230466,1.44281833,47350.0,47349.0,0.03892153]
[1641067230664,1.42167597,47350.0,47349.0,0.03892153]
[1641067231466,2.49218737,47350.0,47349.0,0.03892153]
[1641067231665,2.11168718,47350.0,47349.0,0.03892153]
[1641067231865,1.76168718,47350.0,47349.0,0.03892153]
[1641067232466,1.78266684,47350.0,47349.0,0.03892153]
[1641067232666,1.7634431,47350.0,47349.0,0.03892153]
[1641067233415,1.78182087,47350.0,47349.0,0.03892153]
[1641067233814,1.74246344,47350.0,47349.0,0.03892153]
[1641067234416,2.08246344,47350.0,47349.0,0.03892153]
[1641067234617,2.1023187,47350.0,47349.0,0.03892153]
[1641067234816,1.7623187,47350.0,47349.0,0.03892153]
[1641067235515,1.78079536,47350.0,47349.0,0.03892153]
[1641067235715,1.7609401,47350.0,47349.0,0.03892153]
[1641067236519,1.78226819,47350.0,47349.0,0.03892153]
[1641067236759,1.76379153,47350.0,47349.0,0.03892153]
[1641067237461,1.78577094,47350.0,47349.0,0.03892153]
[1641067237659,1.44613594,47350.0,47349.0,0.03892153]
[1641067237861,1.42480785,47350.0,47349.0,0.03892153]
[1641067238265,1.76444285,47350.0,47349.0,0.03892153]
[1641067238462,1.78307396,47350.0,47349.0,0.03892153]
[1641067238663,1.76109455,47350.0,47349.0,0.03892153]
[1641067239561,1.7806582,47350.0,47349.0,0.03892153]
[1641067239763,1.76202709,47350.0,47349.0,0.03892153]
[1641067240610,2.60297815,47350.0,47349.0,0.03892153]
[1641067240812,2.4834145,47350.0,47349.0,0.03892153]
[1641067241612,2.5052589,47350.0,47349.0,0.03892153]
[1641067241910,1.76430784,47350.0,47349.0,0.03892153]
[1641067242112,1.86430784,47350.0,47349.0,0.03892153]
[1641067242613,2.60499543,47350.0,47349.0,0.03892153]
[1641067242809,2.58315103,47350.0,47349.0,0.03892153]
[1641067243010,1.86281461,47350.0,47349.0,0.03892153]
[1641067243610,1.88364487,47350.0,47349.0,0.03892153]
[1641067243810,1.84246344,47350.0,47349.0,0.03892153]
[1641067244651,1.8609893,47350.0,47349.0,0.03892153]
[1641067245551,1.88135982,47350.0,47349.0,0.03892153]
[1641067245752,1.86283396,47350.0,47349.0,0.03892153]
[1641067245954,2.46279079,47350.0,47349.0,0.03892153]
[1641067246553,2.4838147,47350.0,47349.0,0.03892153]
[1641067246755,2.46344418,47350.0,47349.0,0.03892153]
[1641067246955,1.86348735,47350.0,47349.0,0.03892153]
[1641067247554,2.48315555,47350.0,47349.0,0.03892153]
[1641067247755,2.46213164,47350.0,47349.0,0.03892153]
[1641067248612,2.48021254,47350.0,47349.0,0.03892153]
[1641067248812,2.46050117,47350.0,47349.0,0.03892153]
[1641067249712,1.88104513,47350.0,47349.0,0.03892153]
[1641067249912,1.86296423,47350.0,47349.0,0.03892153]
[1641067250712,1.88425369,47350.0,47349.0,0.03892153]
[1641067250912,1.8637529,47350.0,47349.0,0.03892153]
[1641067251115,2.36370973,47350.0,47349.0,0.03892153]
[1641067251316,2.3636367,47350.0,47349.0,0.03892153]
[1641067251750,2.36183871,47350.0,47349.0,0.03892153]
[1641067252650,2.38131922,47350.0,47349.0,0.03892153]
[1641067252850,2.36182775,47350.0,47349.0,0.03892153]
[1641067253451,1.76187092,47350.0,47349.0,0.03892153]
[1641067253651,1.78175777,47350.0,47349.0,0.03892153]
[1641067254455,2.3423726,47350.0,47349.0,0.03892153]
[1641067254652,2.36039288,47350.0,47349.0,0.03892153]
[1641067255702,2.37852947,47350.0,47349.0,0.03892153]
[1641067255907,2.36050919,47350.0,47349.0,0.03892153]
[1641067256605,2.37923615,47350.0,47349.0,0.03892153]
[1641067256805,2.36109956,47350.0,47349.0,0.03892153]
[1641067257607,2.38125315,47350.0,47349.0,0.03892153]
[1641067258507,2.3423726,47350.0,47349.0,0.03892153]
[1641067258707,2.36078249,47350.0,47349.0,0.03892153]
[1641067259559,2.3423726,47350.0,47349.0,0.03892153]
[1641067260362,2.36324509,47350.0,47349.0,0.03892153]
[1641067261162,1.74239041,47350.0,47349.0,0.03892153]
[1641067261461,1.76416612,47350.0,47349.0,0.03892153]
[1641067261661,1.98269427,47350.0,47349.0,0.03892153]
[1641067261862,1.96091856,47350.0,47349.0,0.03892153]
[1641067262066,3.08125498,47350.0,47349.0,0.03892153]
[1641067262762,3.10235387,47350.0,47349.0,0.03892153]
[1641067263012,2.38201745,47350.0,47349.0,0.03892153]
[1641067263518,1.98201745,47350.0,47349.0,0.03892153]
[1641067263713,2.0011728,47350.0,47349.0,0.03892153]
[1641067263913,2.72116345,47350.0,47349.0,0.03892153]
[1641067264513,2.66238106,47350.0,47349.0,0.03892153]
[1641067264715,2.681452,47350.0,47349.0,0.03892153]
[1641067265216,2.80185384,47350.0,47349.0,0.03892153]
[1641067265713,2.82240063,47350.0,47349.0,0.03892153]
[1641067266316,2.82240063,47350.0,47349.0,0.09249153]
[1641067266514,2.7827829,47350.0,47349.0,0.09249153]
[1641067266754,2.80107383,47350.0,47349.0,0.09249153]
[1641067267555,2.7827829,47350.0,47349.0,0.09249153]
[1641067267756,1.9611675,47350.0,47349.0,0.09249153]
[1641067268357,2.80155999,47350.0,47349.0,0.09249153]
[1641067268555,1.9611675,47350.0,47349.0,0.09249153]
[1641067268756,3.1810223,47350.0,47349.0,0.09249153]
[1641067269155,3.14300628,47350.0,47349.0,0.09249153]
[1641067269756,3.1611836,47350.0,47349.0,0.09249153]
[1641067270159,3.14300628,47350.0,47349.0,0.09249153]
[1641067270804,3.16287152,47350.0,47349.0,0.09249153]
[1641067271803,1.98214102,47350.0,47349.0,0.09249153]
[1641067272004,2.82255645,47350.0,47349.0,0.09249153]
[1641067272304,2.78280584,47350.0,47349.0,0.09249153]
[1641067272904,2.80301075,47350.0,47349.0,0.09249153]
[1641067273808,2.824382,47350.0,47349.0,0.09249153]
[1641067274006,3.16437532,47350.0,47349.0,0.09249153]
[1641067274865,3.18418643,47350.0,47349.0,0.09249153]
[1641067275070,3.16281518,47350.0,47349.0,0.09249153]
[1641067275969,2.80262943,47350.0,47349.0,0.09249153]
[1641067276168,1.96220152,47350.0,47349.0,0.09249153]
[1641067276369,3.18177898,47350.0,47349.0,0.09249153]
[1641067276568,3.16196787,47350.0,47349.0,0.09249153]
[1641067276767,3.18222113,47350.0,47349.0,0.09249153]
[1641067276968,3.16328883,47350.0,47349.0,0.09249153]
[1641067278006,3.18169622,47350.0,47349.0,0.09249153]
[1641067278209,3.16144296,47350.0,47349.0,0.09249153]
[1641067279009,3.16356301,47350.0,47349.0,0.09249153]
[1641067279809,3.18243776,47350.0,47349.0,0.09249153]
[1641067280011,3.16191032,47350.0,47349.0,0.09249153]
[1641067280810,3.18025215,47350.0,47349.0,0.09249153]
[1641067281014,2.82002602,47350.0,47349.0,0.09249153]
[1641067281212,2.78513617,47350.0,47349.0,0.09249153]
[1641067281412,2.66478764,47350.0,47349.0,0.09249153]
[1641067281856,2.68513417,47350.0,47349.0,0.09249153]
[1641067282156,2.6874609,47350.0,47349.0,0.09249153]
[1641067282557,2.66711437,47350.0,47349.0,0.09249153]
[1641067282956,2.21119348,47350.0,47349.0,0.09249153]
[1641067283156,2.12911634,47350.0,47349.0,0.09249153]
[1641067283359,1.64228134,47350.0,47349.0,0.09249153]
[1641067283958,1.66207955,47350.0,47349.0,0.09249153]
[1641067284256,0.74636789,47350.0,47349.0,0.22664714]
[1641067284458,0.02629739,47350.0,47349.0,0.61535383]
[1641067284957,0.04686119,47350.0,47349.0,0.53885213]
[1641067285157,0.02706298,47350.0,47349.0,0.53885213]
[1641067285432,0.02938971,47350.0,47349.0,0.53885213]
[1641067285821,0.02938971,47350.0,47349.0,0.64443213]
[1641067286221,0.01115264,47350.0,47349.0,0.64443213]
[1641067286622,0.01115264,47350.0,47349.0,1.05543747]
[1641067287423,0.0120755,47350.0,47349.0,1.05543747]
[1641067288327,0.01299836,47350.0,47349.0,1.05543747]
[1641067289483,0.01392122,47350.0,47349.0,1.05543747]
[1641067290489,0.01484408,47350.0,47349.0,1.05543747]
[1641067291488,0.01717081,47350.0,47349.0,1.05543747]
[1641067292089,0.01694603,47350.0,47349.0,1.05543747]
[1641067292488,0.01786889,47350.0,47349.0,1.05543747]
[1641067293524,0.01879175,47350.0,47349.0,1.05543747]
[1641067294524,0.02111848,47350.0,47349.0,1.05543747]
[1641067294726,0.02111848,47350.0,47349.0,0.33346323]
[1641067294928,0.02111848,47350.0,47349.0,0.33222714]
[1641067295630,0.02204134,47350.0,47349.0,0.33222714]
[1641067296671,0.0229642,47350.0,47349.0,0.33222714]
[1641067296871,0.0229642,47350.0,47349.0,0.69411374]
[1641067297073,0.0229642,47350.0,47349.0,0.69747764]
[1641067297273,0.0229642,47350.0,47349.0,0.74747764]
[1641067297672,0.02529093,47350.0,47349.0,0.74747764]
[1641067298276,0.02529093,47350.0,47349.0,0.69747764]
[1641067298673,0.02761766,47350.0,47349.0,0.69747764]
[1641067299774,0.02994439,47350.0,47349.0,0.69747764]
[1641067300825,0.03227112,47350.0,47349.0,0.69747764]
[1641067301724,0.03319398,47350.0,47349.0,0.69747764]
[1641067302422,0.03319398,47350.0,47349.0,0.33222714]
[1641067302823,0.03552071,47350.0,47349.0,0.33222714]
[1641067303223,0.03552071,47350.0,47349.0,0.67228641]
[1641067303823,0.03644357,47350.0,47349.0,0.67228641]
[1641067304470,0.03644357,47350.0,47349.0,0.72228641]
[1641067304870,0.03736643,47350.0,47349.0,0.67228641]
[1641067305070,0.03736643,47350.0,47349.0,0.82228641]
[1641067305271,0.03736643,47350.0,47349.0,0.87228641]
[1641067305470,0.03736643,47350.0,47349.0,0.67228641]
[1641067305871,0.03969316,47350.0,47349.0,0.67228641]
[1641067306876,0.04201989,47350.0,47349.0,0.67228641]
[1641067307173,0.04201989,47350.0,47349.0,0.82228641]
[1641067307373,0.04201989,47350.0,47349.0,0.87228641]
[1641067308043,0.04434662,47350.0,47349.0,0.87228641]
[1641067309042,0.04526948,47350.0,47349.0,0.67228641]
[1641067309243,0.04526948,47350.0,47349.0,0.72228641]
[1641067309444,0.04526948,47350.0,47349.0,0.77228641]
[1641067309644,0.04526948,47350.0,47349.0,0.67228641]
[1641067310047,0.04619234,47350.0,47349.0,0.67290515]
[1641067311049,0.04619234,47350.0,47349.0,0.67352389]
[1641067311050,0.04851907,47350.0,47349.0,0.67352389]
[1641067311353,0.04648668,47350.0,47349.0,0.67352389]
[1641067311779,0.04648668,47350.0,47349.0,0.33346462]
[1641067312279,0.04648668,47350.0,47349.0,0.6714942]
[1641067312479,0.04648668,47350.0,47349.0,0.33408336]
[1641067312678,0.04415995,47350.0,47349.0,0.33408336]
[1641067312878,0.04415995,47350.0,47349.0,0.67051106]
[1641067313079,0.04415995,47350.0,47349.0,0.3347021]
[1641067313279,0.04415995,47350.0,47349.0,0.67140314]
[1641067313479,0.04415995,47350.0,47349.0,0.20054649]
[1641067313480,0.95415995,47350.0,47349.0,0.20054649]
[1641067313682,0.95415995,47350.0,47349.0,0.09496649]
[1641067313683,1.34239882,47350.0,47349.0,0.09496649]
[1641067313882,1.39239882,47350.0,47349.0,0.09496649]
[1641067314079,1.34239882,47350.0,47349.0,0.09558523]
[1641067314382,1.36302629,47350.0,47349.0,0.09558523]
[1641067314780,2.30998383,47350.0,47349.0,0.09558523]
[1641067314981,2.25717783,47350.0,47349.0,0.09558523]
[1641067315180,2.27798472,47350.0,47349.0,0.09620397]
[1641067315434,2.25735725,47350.0,47349.0,0.09620397]
[1641067316228,2.27555477,47350.0,47349.0,0.09682271]
[1641067316430,2.25474788,47350.0,47349.0,0.09682271]
[1641067316829,2.25615175,47350.0,47349.0,0.09682271]
[1641067317230,2.27667917,47350.0,47349.0,0.09744145]
[1641067317431,2.25848165,47350.0,47349.0,0.09744145]
[1641067317832,1.91884665,47350.0,47349.0,0.09744145]
[1641067318033,1.00884665,47350.0,47349.0,0.09744145]
[1641067318232,1.02969759,47350.0,47349.0,0.09806019]
[1641067318433,1.00917017,47350.0,47349.0,0.09806019]
[1641067318635,0.95917017,47350.0,47349.0,0.09806019]
[1641067318834,0.96009303,47350.0,47349.0,0.09806019]
[1641067319266,0.98125359,47350.0,47349.0,0.09867893]
[1641067319468,0.96040265,47350.0,47349.0,0.09867893]
[1641067320168,0.98135502,47350.0,47349.0,0.09867893]
[1641067320367,0.96019446,47350.0,47349.0,0.09929767]
[1641067320566,0.95786773,47350.0,47349.0,0.09929767]
[1641067321168,0.97734619,47350.0,47349.0,0.09929767]
[1641067321367,0.97734619,47350.0,47349.0,0.09991641]
[1641067321570,0.95639382,47350.0,47349.0,0.09758968]
[1641067321769,0.95639382,47350.0,47349.0,0.07574304]
[1641067321968,0.95639382,47350.0,47349.0,0.09758968]
[1641067322168,0.97485434,47350.0,47349.0,0.09758968]
[1641067322368,0.95537588,47350.0,47349.0,0.09820842]
[1641067323224,0.975404,47350.0,47349.0,0.09820842]
[1641067323422,0.975404,47350.0,47349.0,0.09882716]
[1641067324226,0.99369169,47350.0,47349.0,0.09882716]
[1641067324424,0.95520305,47350.0,47349.0,0.09882716]
[1641067324624,0.95520305,47350.0,47349.0,0.0994459]
[1641067324825,0.95520305,47350.0,47349.0,0.09882716]
[1641067325225,0.97638242,47350.0,47349.0,0.09882716]
[1641067325424,0.95809473,47350.0,47349.0,0.09882716]
[1641067325824,0.95809473,47350.0,47349.0,0.0994459]
[1641067326026,1.29772973,47350.0,47349.0,0.09882716]
[1641067326227,1.31904546,47350.0,47349.0,0.09882716]
[1641067326424,1.97786609,47350.0,47349.0,0.09882716]
[1641067327282,1.99939923,47350.0,47349.0,0.09882716]
[1641067327481,1.2980835,47350.0,47349.0,0.09882716]
[1641067328381,1.31815745,47350.0,47349.0,0.09982716]
[1641067328582,1.29662431,47350.0,47349.0,0.09982716]
[1641067329385,1.31763582,47350.0,47349.0,0.09982716]
[1641067329582,1.29756187,47350.0,47349.0,0.09982716]
[1641067329982,2.01789987,47350.0,47349.0,0.09982716]
[1641067330426,2.01823104,47350.0,47349.0,0.09982716]
[1641067330616,1.558518,47350.0,47349.0,0.09982716]
[1641067331216,1.579239,47350.0,47349.0,0.09982716]
[1641067331419,1.918874,47350.0,47349.0,0.09982716]
[1641067332024,1.31861404,47350.0,47349.0,0.1004459]
[1641067332225,1.55655036,47350.0,47349.0,0.09982716]
[1641067332420,1.57707763,47350.0,47349.0,0.11307567]
[1641067332820,2.29741563,47350.0,47349.0,0.11307567]
[1641067333221,2.01741563,47350.0,47349.0,0.11307567]
[1641067333421,1.31743839,47350.0,47349.0,0.12632418]
[1641067333621,1.29691112,47350.0,47349.0,0.12632418]
[1641067334274,1.65807354,47350.0,47349.0,0.12632418]
[1641067334475,1.65807354,47350.0,47349.0,0.1564189]
[1641067334679,1.63771278,47350.0,47349.0,0.1564189]
[1641067335477,2.45674301,47350.0,47345.0,0.42179326]
[1641067335678,2.45674301,47350.0,47342.0,0.0094084]
[1641067335679,0.2,47348.0,47342.0,0.0094084]
[1641067335981,1.7299,47343.0,47342.0,0.0094084]
[1641067336176,1.7299,47343.0,47339.0,0.35148593]
[1641067336177,2.42134959,47343.0,47339.0,0.35148593]
[1641067336376,0.929535,47342.0,47339.0,0.35148593]
[1641067336577,0.0472,47341.0,47339.0,0.35210466]
[1641067336878,1.479635,47340.0,47339.0,0.35148592]
[1641067337077,1.513835,47340.0,47339.0,0.35148592]
[1641067337281,2.40939041,47340.0,47339.0,0.35161373]
[1641067337776,2.40877167,47340.0,47339.0,0.35161373]
[1641067338425,2.52747246,47340.0,47339.0,0.35161373]
[1641067338622,2.62747246,47340.0,47339.0,0.56161373]
[1641067339425,2.62247246,47340.0,47339.0,0.56161373]
[1641067339623,2.64176277,47340.0,47339.0,0.56161373]
[1641067339825,2.62306198,47340.0,47339.0,0.56161373]
[1641067340425,2.64257184,47340.0,47339.0,0.56161373]
[1641067340624,2.62328153,47340.0,47339.0,0.56161373]
[1641067341428,2.64431909,47340.0,47339.0,0.56161373]
[1641067342496,2.66466178,47340.0,47339.0,0.56161373]
[1641067342693,2.62411436,47340.0,47339.0,0.559287]
[1641067343499,2.62404073,47340.0,47339.0,0.559287]
[1641067344497,2.6226663,47340.0,47339.0,0.559287]
[1641067345429,2.64303897,47340.0,47339.0,0.559287]
[1641067346422,2.6619429,47340.0,47339.0,0.559287]
[1641067346624,2.8226756,47340.0,47339.0,0.559287]
[1641067346823,4.5305756,47340.0,47339.0,0.559287]
[1641067347023,3.4125756,47340.0,47339.0,0.559287]
[1641067347522,4.53134161,47340.0,47339.0,0.559287]
[1641067348122,3.41334161,47340.0,47339.0,0.559287]
[1641067348323,3.21334161,47340.0,47339.0,0.559287]
[1641067348523,3.214843,47340.0,47339.0,0.559287]
[1641067349375,3.23581731,47340.0,47339.0,0.559287]
[1641067349577,3.21464598,47340.0,47339.0,0.559287]
[1641067350475,3.23564245,47340.0,47339.0,0.559287]
[1641067351279,3.19367167,47340.0,47339.0,0.559287]
[1641067351478,3.21432,47340.0,47339.0,0.559287]
[1641067352076,4.41524467,47340.0,47339.0,0.559287]
[1641067352478,4.43486017,47340.0,47339.0,0.559287]
[1641067352676,4.41421184,47340.0,47339.0,0.559287]
[1641067353520,4.43325673,47340.0,47339.0,0.559287]
[1641067353721,4.41364123,47340.0,47339.0,0.559287]
[1641067354522,4.432446,47340.0,47339.0,0.559287]
[1641067354724,4.41340111,47340.0,47339.0,0.559287]
[1641067355525,4.43269389,47340.0,47339.0,0.559287]
[1641067355723,4.41388912,47340.0,47339.0,0.559287]
[1641067356122,3.21296445,47340.0,47339.0,0.559287]
[1641067356523,3.23388906,47340.0,47339.0,0.559287]
[1641067356784,3.16459628,47340.0,47339.0,0.559287]
[1641067358186,3.18493376,47340.0,47339.0,0.559287]
[1641067358385,3.21400915,47340.0,47339.0,0.559287]
[1641067358586,3.23277453,47340.0,47339.0,0.559287]
[1641067358787,3.21243705,47340.0,47339.0,0.559287]
[1641067359587,3.23435314,47340.0,47339.0,0.559287]
[1641067360620,3.25458076,47340.0,47339.0,0.559287]
[1641067360823,3.21389929,47340.0,47339.0,0.559287]
[1641067361622,3.23328938,47340.0,47339.0,0.55782386]
[1641067361822,3.21306176,47340.0,47339.0,0.55782386]
[1641067362626,3.23340243,47340.0,47339.0,0.55782386]
[1641067363626,3.25401296,47340.0,47339.0,0.55782386]
[1641067363828,3.2142822,47340.0,47339.0,0.556901]
[1641067364667,3.23349886,47340.0,47339.0,0.556901]
[1641067364868,3.21288833,47340.0,47339.0,0.556901]
[1641067365268,3.5932313,47340.0,47339.0,0.556901]
[1641067365667,3.5953404,47340.0,47339.0,0.556901]
[1641067366069,2.4053404,47340.0,47339.0,0.556901]
[1641067366272,1.39799414,47340.0,47339.0,0.556901]
[1641067366669,1.39766305,47340.0,47339.0,0.556901]
[1641067367271,1.39766305,47340.0,47339.0,0.55677319]
[1641067367770,1.41763753,47340.0,47339.0,0.55677319]
[1641067368015,0.52208212,47340.0,47339.0,0.55677319]
[1641067368617,0.54222852,47340.0,47339.0,0.55677319]
[1641067368914,0.50125937,47340.0,47339.0,0.55677319]
[1641067369516,0.52121619,47340.0,47339.0,0.55677319]
[1641067369715,0.50106979,47340.0,47339.0,0.55677319]
[1641067371324,0.5210803,47340.0,47339.0,0.55677319]
[1641067371515,0.50112348,47340.0,47339.0,0.55677319]
[1641067371768,0.51986565,47340.0,47339.0,0.55677319]
[1641067371971,0.49985514,47340.0,47339.0,0.55677319]
[1641067372571,0.51795904,47340.0,47339.0,0.55677319]
[1641067373772,0.53946225,47340.0,47339.0,0.55677319]
[1641067374073,0.50261618,47340.0,47339.0,0.55677319]
[1641067374673,0.5239884,47340.0,47339.0,0.55677319]
[1641067374972,0.40248519,47340.0,47339.0,0.55677319]
[1641067375643,0.42327945,47340.0,47339.0,0.55677319]
[1641067375845,0.40190723,47340.0,47339.0,0.55677319]
[1641067376244,0.74156723,47340.0,47339.0,0.55677319]
[1641067376647,0.76162197,47340.0,47339.0,0.55677319]
[1641067376845,1.22162197,47340.0,47339.0,0.55677319]
[1641067377445,1.18077297,47340.0,47339.0,0.55677319]
[1641067377748,2.09744389,47340.0,47339.0,0.55677319]
[1641067378746,2.11623968,47340.0,47339.0,0.55677319]
[1641067378947,2.09512417,47340.0,47339.0,0.55677319]
[1641067379172,2.14232417,47340.0,47339.0,0.55677319]
[1641067379369,2.14232417,47340.0,47339.0,0.55662319]
[1641067379771,2.16097474,47340.0,47339.0,0.55662319]
[1641067380672,0.05357,47338.0,47330.0,0.1]
[1641067380873,0.04030705,47339.0,47330.0,0.1]
[1641067380874,1.78347,47331.0,47330.0,0.1]
[1641067381170,2.27033,47331.0,47330.0,0.1]
[1641067381374,2.51573242,47331.0,47330.0,0.1]
[1641067381672,2.53573431,47331.0,47330.0,0.1]
[1641067381870,3.43128972,47331.0,47330.0,0.1]
[1641067382471,3.53412572,47331.0,47330.0,0.00075028]
[1641067382934,4.85212572,47331.0,47330.0,0.00075028]
[1641067383329,4.87319252,47331.0,47330.0,0.00075028]
[1641067383528,4.85319063,47331.0,47330.0,0.00075028]
[1641067383730,4.87870326,47331.0,47330.0,0.00075028]
[1641067383929,4.85763646,47331.0,47330.0,0.00075028]
[1641067384830,0.05284106,47328.0,47325.0,0.00015742]
[1641067385029,1.47339948,47327.0,47325.0,0.00015742]
[1641067385230,1.52266526,47326.0,47325.0,0.00015742]
[1641067385431,2.49351426,47326.0,47325.0,0.00015742]
[1641067385634,3.48906967,47326.0,47325.0,0.00054084]
[1641067386681,3.50931063,47326.0,47325.0,0.00054084]
[1641067387682,3.52955827,47326.0,47325.0,0.00054084]
[1641067387883,3.50931731,47326.0,47325.0,0.00054084]
[1641067388689,3.52745379,47326.0,47325.0,0.00054084]
[1641067388886,4.82520615,47326.0,47325.0,0.00054084]
[1641067389489,4.82520615,47326.0,47325.0,0.21054084]
[1641067389888,4.82990592,47326.0,47325.0,0.21054084]
[1641067390817,4.85135613,47326.0,47325.0,0.21054084]
[1641067391118,4.82973454,47326.0,47325.0,0.21054084]
[1641067391717,4.84928971,47326.0,47325.0,0.21054084]
[1641067391917,4.8278395,47326.0,47325.0,0.21054084]
[1641067392918,4.8462827,47326.0,47325.0,0.21054084]
[1641067393216,4.82672753,47326.0,47325.0,0.21054084]
[1641067393417,2.31157,47325.0,47324.0,0.00011]
[1641067393617,4.742178,47325.0,47324.0,0.00011]
[1641067393819,5.83773341,47325.0,47324.0,0.00011]
[1641067394264,5.73773341,47325.0,47324.0,0.00011]
[1641067395564,5.75921288,47325.0,47323.0,0.00033]
[1641067395765,3.75739608,47324.0,47323.0,0.00033]
[1641067395965,4.70015149,47324.0,47323.0,0.00033]
[1641067396165,4.80015149,47324.0,47323.0,0.00033]
[1641067397065,4.49807295,47324.0,47323.0,0.00033]
[1641067398015,4.51637174,47324.0,47323.0,0.00033]
[1641067398214,4.4962732,47324.0,47323.0,0.00033]
[1641067399015,3.19734156,47324.0,47323.0,0.00033]
[1641067399817,3.05997441,47324.0,47323.0,0.00033]
[1641067400015,3.07878564,47324.0,47323.0,0.00033]
[1641067400215,1.34888564,47324.0,47323.0,0.00033]
[1641067400414,1.85888564,47324.0,47323.0,0.00033]
[1641067401016,1.85896012,47324.0,47323.0,0.00033]
[1641067401983,1.87696771,47324.0,47323.0,0.00033]
[1641067402180,1.858082,47324.0,47323.0,0.00033]
[1641067402881,1.87747516,47324.0,47323.0,0.00033]
[1641067403081,1.85946757,47324.0,47323.0,0.00033]
[1641067403682,2.58022241,47324.0,47323.0,0.00033]
[1641067403880,2.07022241,47324.0,47323.0,0.00033]
[1641067404082,2.07245808,47324.0,47323.0,0.00033]
[1641067404884,2.17245808,47324.0,47323.0,0.00033]
[1641067405082,2.1915473,47324.0,47323.0,0.00033]
[1641067405719,1.33007441,47324.0,47323.0,0.00033]
[1641067405921,1.19357,47322.0,47321.0,0.00017714]
[1641067406119,1.53323,47322.0,47321.0,0.00017714]
[1641067406320,2.42878541,47322.0,47321.0,0.00025017]
[1641067406825,3.02941523,47322.0,47321.0,0.00025017]
[1641067407121,3.09659899,47322.0,47321.0,0.00025017]
[1641067407320,2.49596917,47322.0,47321.0,0.00025017]
[1641067407822,2.47598541,47322.0,47321.0,0.00025017]
[1641067408021,2.49634832,47322.0,47321.0,0.00025017]
[1641067409023,2.51500324,47322.0,47321.0,0.00025017]
[1641067409283,2.49464033,47322.0,47321.0,0.00025017]
[1641067409685,2.39464033,47322.0,47321.0,0.00025017]
[1641067410082,2.41465558,47322.0,47321.0,0.00025017]
[1641067410289,2.39600066,47322.0,47321.0,0.00025017]
[1641067411083,2.41731929,47322.0,47321.0,0.00025017]
[1641067411984,2.39750438,47322.0,47321.0,0.00025017]
[1641067413032,2.41774986,47322.0,47321.0,0.00025017]
[1641067413233,2.39623089,47322.0,47321.0,0.00025017]
[1641067414234,2.41460887,47322.0,47321.0,0.00025017]
[1641067414435,2.39436339,47322.0,47321.0,0.00025017]
[1641067415035,2.41583772,47322.0,47321.0,0.00025017]
[1641067415233,2.39745974,47322.0,47321.0,0.00025017]
[1641067415636,1.30388974,47322.0,47321.0,0.00025017]
[1641067416038,1.32562787,47322.0,47321.0,0.00025017]
[1641067416236,1.30415354,47322.0,47321.0,0.00025017]
[1641067417084,1.32366873,47322.0,47321.0,0.00025017]
[1641067417284,1.3019306,47322.0,47321.0,0.00025017]
[1641067418086,1.32314718,47322.0,47321.0,0.00025017]
[1641067418284,1.30363199,47322.0,47321.0,0.00025017]
[1641067419085,1.32264868,47322.0,47321.0,0.00025017]
[1641067419887,1.28241541,47322.0,47321.0,0.00025017]
[1641067420731,1.30357647,47322.0,47321.0,0.00025017]
[1641067421128,1.32305385,47322.0,47321.0,0.00025017]
[1641067421333,1.30189279,47322.0,47321.0,0.00025017]
[1641067422130,1.32229593,47322.0,47321.0,0.00025017]
[1641067422330,1.77281855,47322.0,47321.0,0.00025017]
[1641067422532,2.37343194,47322.0,47321.0,0.00025017]
[1641067423029,1.77281855,47322.0,47321.0,0.00025017]
[1641067423234,1.30281855,47322.0,47321.0,0.00025017]
[1641067423631,1.32309295,47322.0,47321.0,0.00025017]
[1641067423831,1.30268981,47322.0,47321.0,0.00025017]
[1641067424280,1.65023582,47322.0,47321.0,0.00025017]
[1641067424481,1.75023582,47322.0,47321.0,0.00025017]
[1641067424681,1.45167378,47322.0,47321.0,0.00025017]
[1641067425083,1.47201995,47322.0,47321.0,0.00025017]
[1641067425284,1.45276158,47322.0,47321.0,0.00025017]
[1641067425484,1.30276158,47322.0,47321.0,0.00025017]
[1641067426085,1.32195522,47322.0,47321.0,0.00025017]
[1641067426282,1.30160905,47322.0,47321.0,0.00025017]
[1641067426884,1.473749,47321.0,47314.0,0.00034344]
[1641067427083,0.10568349,47319.0,47314.0,0.00034344]
[1641067427285,0.38686,47318.0,47315.0,0.00010955]
[1641067427942,1.28241541,47318.0,47315.0,0.00010955]
[1641067428233,1.30147691,47318.0,47315.0,0.00010955]
[1641067428631,0.10568566,47317.0,47315.0,0.00010955]
[1641067428833,1.230949,47316.0,47315.0,0.00010955]
[1641067430233,1.24914291,47316.0,47315.0,0.00010955]
[1641067431233,1.27000965,47316.0,47315.0,0.00010955]
[1641067431436,1.25181574,47316.0,47315.0,0.00010955]
[1641067432271,1.27080421,47316.0,47315.0,0.00010955]
[1641067432469,1.24993747,47316.0,47315.0,0.00010955]
[1641067433872,1.25067689,47316.0,47315.0,0.00010955]
[1641067434271,1.26956183,47316.0,47315.0,0.00010955]
[1641067434471,1.24983394,47316.0,47315.0,0.00010955]